fUST/lending_fUST_20250221
["ID","MTS","AMOUNT","RATE_DAILY","PERIOD"]
[353890713,1740114646127,-500.0,0.00014356,2]
[353890715,1740114646137,-500.0,0.00014356,2]
[353890717,1740114646148,-312.56967895,0.00014356,2]
[353890719,1740114646157,-500.0,0.00014356,2]
[353890721,1740114646168,-500.0,0.00014356,2]
[353890723,1740114646180,-458.47733376,0.00014356,2]
[353890725,1740114646189,-500.0,0.00014356,2]
[353890727,1740114646200,-524.28,0.00014356,2]
[353890729,1740114646210,-500.0,0.00014356,2]
[353890731,1740114646219,-500.0,0.00014356,2]
[353890733,1740114646229,-511.75,0.00014356,2]
[353890735,1740114646239,-500.0,0.00014356,2]
[353890737,1740114646248,-500.0,0.00014356,2]
[353890739,1740114646258,-500.0,0.00014356,2]
[353890741,1740114646267,-358.85536298,0.00014356,2]
[353890743,1740114646277,-1007.53,0.00014356,2]
[353890745,1740114646286,-4009.9,0.00014356,2]
[353890747,1740114646296,-8446.91,0.00014356,2]
[353890749,1740114646306,-615.2,0.00014356,2]
[353890751,1740114646315,-1320.31,0.00014356,2]
[353890753,1740114646325,-500.0,0.00014356,2]
[353890755,1740114646334,-557.27,0.00014356,2]
[353890757,1740114646344,-500.0,0.00014356,2]
[353890759,1740114646353,-752.73,0.00014356,2]
[353890761,1740114646362,-500.0,0.00014356,2]
[353890763,1740114646371,-500.0,0.00014356,2]
[353890765,1740114646380,-648.09,0.00014356,2]
[353890767,1740114646389,-17376.56,0.00014356,2]
[353890769,1740114646399,-554.48,0.00014356,2]
[353890771,1740114646408,-500.0,0.00014356,2]
[353890773,1740114646420,-616.57306106,0.00014356,2]
[353890775,1740114646430,-923.91,0.00014356,2]
[353890777,1740114646439,-1155.74,0.00014356,2]
[353890779,1740114646448,-721.81,0.00014356,2]
[353890781,1740114646459,-646.04,0.00014356,2]
[353890783,1740114646469,-1855.29,0.00014356,2]
[353890785,1740114646478,-500.0,0.00014356,2]
[353890787,1740114646488,-3407.22,0.00014356,2]
[353890789,1740114646497,-7910.61,0.00014356,2]
[353890791,1740114646506,-1002.16,0.00014356,2]
[353890793,1740114646517,-500.0,0.00014356,2]
[353890795,1740114646526,-600.82,0.00014356,2]
[353890797,1740114646536,-1241.33,0.00014356,2]
[353890799,1740114646546,-1856.52,0.00014356,2]
[353890801,1740114646555,-1030.11,0.00014356,2]
[353890803,1740114646564,-2100.6,0.00014356,2]
[353890805,1740114646573,-500.0,0.00014356,2]
[353890807,1740114646582,-665.38,0.00014356,2]
[353890809,1740114646591,-500.0,0.00014356,2]
[353890811,1740114646600,-580.96,0.00014356,2]
[353890813,1740114646610,-500.0,0.00014356,2]
[353890815,1740114646621,-1133.36,0.00014356,2]
[353890817,1740114646633,-500.0,0.00014356,2]
[353890819,1740114646642,-1557.5,0.00014356,2]
[353890821,1740114646651,-1012.26,0.00014356,2]
[353890823,1740114646661,-500.0,0.00014356,2]
[353890825,1740114646670,-500.0,0.00014356,2]
[353890827,1740114646680,-1120.86,0.00014356,2]
[353890829,1740114646689,-3734.49,0.00014356,2]
[353890831,1740114646699,-374.74986051,0.00014356,2]
[353890833,1740114646709,-542.97,0.00014356,2]
[353890835,1740114646718,-500.0,0.00014356,2]
[353890837,1740114646727,-151.0,0.000144,2]
[353890839,1740114646736,-151.0,0.000144,2]
[353890841,1740114646746,-284.32,0.0001442,2]
[353890843,1740114646755,-263.41740627,0.0001442,2]
[353890845,1740114646764,-263.41740627,0.0001442,2]
[353890847,1740114646773,-263.41740627,0.0001442,2]
[353890849,1740114646782,-263.41740627,0.0001442,2]
[353890851,1740114646791,-263.41740627,0.0001442,2]
[353890853,1740114646800,-263.41740627,0.0001442,2]
[353890855,1740114646809,-263.41740627,0.0001442,2]
[353890856,1740114646819,-263.41740627,0.0001442,2]
[353890858,1740114646827,-263.41740627,0.0001442,2]
[353890861,1740114646837,-263.41740627,0.0001442,2]
[353890862,1740114646846,-263.41740627,0.0001442,2]
[353890865,1740114646855,-263.41740627,0.0001442,2]
[353890866,1740114646864,-263.41740627,0.0001442,2]
[353890869,1740114646874,-263.41740627,0.0001442,2]
[353890871,1740114646883,-263.41740627,0.0001442,2]
[353890873,1740114646892,-263.41740627,0.0001442,2]
[353890875,1740114646901,-263.41740627,0.0001442,2]
[353890877,1740114646910,-263.41740627,0.0001442,2]
[353890878,1740114646919,-263.41740627,0.0001442,2]
[353890880,1740114646928,-263.41,0.0001442,2]
[353890883,1740114646937,-370.84185264,0.0001442,2]
[353890885,1740114646947,-370.84185264,0.0001442,2]
[353890887,1740114646956,-370.84185264,0.0001442,2]
[353890889,1740114646965,-370.84185264,0.0001442,2]
[353890891,1740114646975,-370.84185264,0.0001442,2]
[353890893,1740114646984,-370.84185264,0.0001442,2]
[353890895,1740114646995,-370.84185264,0.0001442,2]
[353890896,1740114647007,-370.84185264,0.0001442,2]
[353890897,1740114647016,-370.84185264,0.0001442,2]
[353890898,1740114647025,-370.84185264,0.0001442,2]
[353890899,1740114647034,-370.84185264,0.0001442,2]
[353890900,1740114647043,-370.84185264,0.0001442,2]
[353890901,1740114647052,-370.84185264,0.0001442,2]
[353890902,1740114647061,-370.84185264,0.0001442,2]
[353890903,1740114647070,-370.84185264,0.0001442,2]
[353890904,1740114647079,-370.84185264,0.0001442,2]
[353890905,1740114647090,-370.84185264,0.0001442,2]
[353890906,1740114647099,-370.84185264,0.0001442,2]
[353890907,1740114647109,-370.84185264,0.0001442,2]
[353890908,1740114647119,-370.84,0.0001442,2]
[353890909,1740114647128,-500.0,0.00014438,2]
[353890910,1740114647138,-500.0,0.00014438,2]
[353890911,1740114647147,-500.0,0.00014438,2]
[353890912,1740114647156,-185.64164412,0.00014438,2]
[353890913,1740114647165,-500.0,0.00014438,2]
[353890914,1740114647174,-524.28,0.00014438,2]
[353890915,1740114647183,-376.14953576,0.00014438,2]
[353890916,1740114647192,-500.0,0.00014438,2]
[353890917,1740114647201,-511.75,0.00014438,2]
[353890918,1740114647211,-462.96857932,0.00014438,2]
[353890920,1740114647219,-500.0,0.00014438,2]
[353890922,1740114647228,-500.0,0.00014438,2]
[353890924,1740114647238,-1007.53,0.00014438,2]
[353890926,1740114647247,-4009.9,0.00014438,2]
[353890928,1740114647256,-8446.91,0.00014438,2]
[353890930,1740114647266,-615.2,0.00014438,2]
[353890932,1740114647275,-1320.31,0.00014438,2]
[353890934,1740114647285,-609.84795924,0.00014438,2]
[353890936,1740114647297,-557.27,0.00014438,2]
[353890938,1740114647306,-500.0,0.00014438,2]
[353890940,1740114647315,-752.73,0.00014438,2]
[353890942,1740114647325,-500.0,0.00014438,2]
[353890944,1740114647335,-500.0,0.00014438,2]
[353890947,1740114647552,-648.09,0.00014438,2]
[353890949,1740114647563,-17376.56,0.00014438,2]
[353890951,1740114647573,-554.48,0.00014438,2]
[353890953,1740114647583,-500.0,0.00014438,2]
[353890955,1740114647593,-923.91,0.00014438,2]
[353890957,1740114647602,-1155.74,0.00014438,2]
[353890959,1740114647611,-721.81,0.00014438,2]
[353890961,1740114647622,-646.04,0.00014438,2]
[353890963,1740114647632,-1855.29,0.00014438,2]
[353890965,1740114647641,-500.0,0.00014438,2]
[353890967,1740114647650,-3407.22,0.00014438,2]
[353890969,1740114647660,-7910.61,0.00014438,2]
[353890971,1740114647670,-1002.16,0.00014438,2]
[353890973,1740114647680,-500.0,0.00014438,2]
[353890974,1740114647690,-600.82,0.00014438,2]
[353890976,1740114647700,-1241.33,0.00014438,2]
[353890979,1740114647709,-1856.52,0.00014438,2]
[353890981,1740114647719,-1030.11,0.00014438,2]
[353890983,1740114647728,-2100.6,0.00014438,2]
[353890985,1740114647738,-500.0,0.00014438,2]
[353890987,1740114647747,-665.38,0.00014438,2]
[353890989,1740114647756,-500.0,0.00014438,2]
[353890991,1740114647765,-580.96,0.00014438,2]
[353890993,1740114647775,-500.0,0.00014438,2]
[353890995,1740114647785,-1133.36,0.00014438,2]
[353890997,1740114647794,-500.0,0.00014438,2]
[353890999,1740114647804,-1557.5,0.00014438,2]
[353891000,1740114647814,-1012.26,0.00014438,2]
[353891001,1740114647823,-500.0,0.00014438,2]
[353891002,1740114647833,-500.0,0.00014438,2]
[353891003,1740114647842,-1120.86,0.00014438,2]
[353891004,1740114647851,-3734.49,0.00014438,2]
[353891005,1740114647861,-542.97,0.00014438,2]
[353891006,1740114647870,-500.0,0.00014438,2]
[353891007,1740114647879,-700.0,0.00014438,2]
[353891008,1740114647889,-168.40801011,0.00014438,2]
[353891009,1740114647898,-2926.33189115,0.00014502,2]
[353891010,1740114647908,-500.0,0.0001452,2]
[353891011,1740114647917,-500.0,0.0001452,2]
[353891012,1740114647926,-500.0,0.0001452,2]
[353891013,1740114647937,-500.0,0.0001452,2]
[353891014,1740114647946,-524.28,0.0001452,2]
[353891016,1740114647955,-500.0,0.0001452,2]
[353891018,1740114647964,-511.75,0.0001452,2]
[353891020,1740114647973,-500.0,0.0001452,2]
[353891022,1740114647983,-500.0,0.0001452,2]
[353891024,1740114647991,-1007.53,0.0001452,2]
[353891027,1740114648001,-4009.9,0.0001452,2]
[353891029,1740114648010,-8446.91,0.0001452,2]
[353891031,1740114648019,-615.2,0.0001452,2]
[353891032,1740114648028,-1320.31,0.0001452,2]
[353891034,1740114648037,-557.27,0.0001452,2]
[353891037,1740114648046,-500.0,0.0001452,2]
[353891039,1740114648056,-752.73,0.0001452,2]
[353891040,1740114648065,-500.0,0.0001452,2]
[353891042,1740114648074,-500.0,0.0001452,2]
[353891044,1740114648084,-648.09,0.0001452,2]
[353891046,1740114648093,-17376.56,0.0001452,2]
[353891049,1740114648103,-554.48,0.0001452,2]
[353891051,1740114648113,-531.07547902,0.0001452,2]
[353891053,1740114648123,-923.91,0.0001452,2]
[353891055,1740114648136,-1155.74,0.0001452,2]
[353891056,1740114648148,-721.81,0.0001452,2]
[353891058,1740114648158,-646.04,0.0001452,2]
[353891060,1740114648167,-1855.29,0.0001452,2]
[353891063,1740114648177,-185.663375,0.0001452,2]
[353891065,1740114648189,-3407.22,0.0001452,2]
[353891067,1740114648198,-7910.61,0.0001452,2]
[353891069,1740114648207,-1002.16,0.0001452,2]
[353891071,1740114648217,-500.0,0.0001452,2]
[353891073,1740114648226,-600.82,0.0001452,2]
[353891075,1740114648236,-1241.33,0.0001452,2]
[353891077,1740114648245,-1856.52,0.0001452,2]
[353891079,1740114648257,-1030.11,0.0001452,2]
[353891081,1740114648266,-2100.6,0.0001452,2]
[353891083,1740114648276,-500.0,0.0001452,2]
[353891085,1740114648286,-665.38,0.0001452,2]
[353891087,1740114648296,-500.0,0.0001452,2]
[353891089,1740114648305,-580.96,0.0001452,2]
[353891091,1740114648315,-500.0,0.0001452,2]
[353891093,1740114648324,-1133.36,0.0001452,2]
[353891095,1740114648334,-500.0,0.0001452,2]
[353891097,1740114648344,-1557.5,0.0001452,2]
[353891099,1740114648354,-1012.26,0.0001452,2]
[353891101,1740114648364,-500.0,0.0001452,2]
[353891114,1740114648466,-500.0,0.0001452,2]
[353891116,1740114648491,-1120.86,0.0001452,2]
[353891118,1740114648506,-3734.49,0.0001452,2]
[353891120,1740114648516,-542.97,0.0001452,2]
[353891122,1740114648526,-500.0,0.0001452,2]
[353891124,1740114648536,-160.0,0.00014577,5]
[353891126,1740114648546,-1002.98575084,0.00014598,2]
[353891128,1740114648556,-501.55007997,0.00014602,2]
[353891130,1740114648566,-500.0,0.00014602,2]
[353891132,1740114648576,-500.0,0.00014602,2]
[353891134,1740114648586,-500.0,0.00014602,2]
[353891136,1740114648596,-500.0,0.00014602,2]
[353891138,1740114648606,-524.28,0.00014602,2]
[353891140,1740114648616,-500.0,0.00014602,2]
[353891142,1740114648629,-511.75,0.00014602,2]
[353891144,1740114648639,-500.0,0.00014602,2]
[353891146,1740114648648,-500.0,0.00014602,2]
[353891148,1740114648657,-1007.53,0.00014602,2]
[353891150,1740114648668,-4009.9,0.00014602,2]
[353891152,1740114648678,-8446.91,0.00014602,2]
[353891154,1740114648691,-615.2,0.00014602,2]
[353891156,1740114648701,-1320.31,0.00014602,2]
[353891158,1740114648711,-557.27,0.00014602,2]
[353891160,1740114648722,-152.53063581,0.00014602,2]
[353891162,1740114648732,-752.73,0.00014602,2]
[353891164,1740114648741,-500.0,0.00014602,2]
[353891166,1740114648750,-500.0,0.00014602,2]
[353891168,1740114648760,-648.09,0.00014602,2]
[353891170,1740114648770,-17376.56,0.00014602,2]
[353891172,1740114648780,-554.48,0.00014602,2]
[353891175,1740114648791,-923.91,0.00014602,2]
[353891177,1740114648801,-1155.74,0.00014602,2]
[353891178,1740114648810,-721.81,0.00014602,2]
[353891181,1740114648820,-646.04,0.00014602,2]
[353891183,1740114648829,-1855.29,0.00014602,2]
[353891184,1740114648839,-3407.22,0.00014602,2]
[353891187,1740114648849,-7910.61,0.00014602,2]
[353891188,1740114648860,-1002.16,0.00014602,2]
[353891190,1740114648870,-402.27380112,0.00014602,2]
[353891192,1740114648881,-600.82,0.00014602,2]
[353891195,1740114648890,-1241.33,0.00014602,2]
[353891197,1740114648900,-1856.52,0.00014602,2]
[353891199,1740114648909,-1030.11,0.00014602,2]
[353891201,1740114648917,-2100.6,0.00014602,2]
[353891203,1740114648928,-500.0,0.00014602,2]
[353891205,1740114648940,-665.38,0.00014602,2]
[353891206,1740114648951,-500.0,0.00014602,2]
[353891209,1740114648961,-580.96,0.00014602,2]
[353891210,1740114648971,-511.89918106,0.00014602,2]
[353891212,1740114648981,-1133.36,0.00014602,2]
[353891215,1740114648990,-500.0,0.00014602,2]
[353891217,1740114648999,-1557.5,0.00014602,2]
[353891219,1740114649009,-1012.26,0.00014602,2]
[353891220,1740114649018,-500.0,0.00014602,2]
[353891222,1740114649028,-500.0,0.00014602,2]
[353891225,1740114649038,-1120.86,0.00014602,2]
[353891226,1740114649047,-3734.49,0.00014602,2]
[353891228,1740114649057,-542.97,0.00014602,2]
[353891230,1740114649067,-500.0,0.00014602,2]
[353891233,1740114649078,-168.40801011,0.0001463,2]
[353891235,1740114649088,-600.0,0.0001465,2]
[353891237,1740114649098,-307.0,0.0001465,2]
[353891239,1740114649108,-571.57327059,0.00014684,2]
[353891241,1740114649117,-500.0,0.00014684,2]
[353891242,1740114649128,-500.0,0.00014684,2]
[353891245,1740114649138,-500.0,0.00014684,2]
[353891246,1740114649147,-524.28,0.00014684,2]
[353891248,1740114649157,-500.0,0.00014684,2]
[353891250,1740114649167,-511.75,0.00014684,2]
[353891252,1740114649177,-500.0,0.00014684,2]
[353891254,1740114649188,-500.0,0.00014684,2]
[353891256,1740114649198,-1007.53,0.00014684,2]
[353891258,1740114649208,-4009.9,0.00014684,2]
[353891261,1740114649218,-8446.91,0.00014684,2]
[353891263,1740114649228,-615.2,0.00014684,2]
[353891265,1740114649238,-1320.31,0.00014684,2]
[353891267,1740114649248,-557.27,0.00014684,2]
[353891269,1740114649258,-752.73,0.00014684,2]
[353891271,1740114649268,-500.0,0.00014684,2]
[353891273,1740114649277,-500.0,0.00014684,2]
[353891275,1740114649287,-648.09,0.00014684,2]
[353891277,1740114649296,-17376.56,0.00014684,2]
[353891279,1740114649306,-554.48,0.00014684,2]
[353891281,1740114649316,-923.91,0.00014684,2]
[353891283,1740114649326,-1155.74,0.00014684,2]
[353891285,1740114649336,-721.81,0.00014684,2]
[353891287,1740114649351,-646.04,0.00014684,2]
[353891289,1740114649366,-1855.29,0.00014684,2]
[353891291,1740114649375,-3407.22,0.00014684,2]
[353891293,1740114649385,-7910.61,0.00014684,2]
[353891295,1740114649396,-1002.16,0.00014684,2]
[353891297,1740114649406,-600.82,0.00014684,2]
[353891299,1740114649416,-1241.33,0.00014684,2]
[353891301,1740114649425,-1856.52,0.00014684,2]
[353891303,1740114649437,-1030.11,0.00014684,2]
[353891305,1740114649446,-2100.6,0.00014684,2]
[353891307,1740114649455,-665.38,0.00014684,2]
[353891309,1740114649465,-500.0,0.00014684,2]
[353891311,1740114649478,-500.0,0.00014684,2]
[353891313,1740114649493,-580.96,0.00014684,2]
[353891316,1740114649504,-1133.36,0.00014684,2]
[353891318,1740114649514,-500.0,0.00014684,2]
[353891320,1740114649523,-1557.5,0.00014684,2]
[353891321,1740114649533,-1012.26,0.00014684,2]
[353891324,1740114649543,-500.0,0.00014684,2]
[353891326,1740114649553,-500.0,0.00014684,2]
[353891328,1740114649563,-1120.86,0.00014684,2]
[353891329,1740114649572,-3734.49,0.00014684,2]
[353891332,1740114649582,-542.97,0.00014684,2]
[353891334,1740114649591,-500.0,0.00014684,2]
[353891335,1740114649600,-151.0,0.000147,2]
[353891337,1740114649611,-562.4722595,0.00014712,2]
[353891340,1740114649621,-308.5185246,0.00014712,2]
[353891341,1740114649633,-500.96222818,0.00014721,2]
[353891342,1740114649642,-510.21662981,0.00014721,2]
[353891343,1740114649651,-1000.0,0.00014721,2]
[353891344,1740114649661,-279.99377584,0.00014721,2]
[353891345,1740114649671,-500.99293683,0.00014721,2]
[353891346,1740114649681,-1000.0,0.00014721,2]
[353891347,1740114649690,-308.01581002,0.00014766,2]
[353891348,1740114649699,-500.0,0.00014766,2]
[353891349,1740114649709,-500.0,0.00014766,2]
[353891350,1740114649718,-500.0,0.00014766,2]
[353891351,1740114649727,-168.43024049,0.00014766,2]
[353891352,1740114649736,-500.0,0.00014767,2]
[353891353,1740114649746,-500.0,0.00014767,2]
[353891354,1740114649755,-500.0,0.00014767,2]
[353891355,1740114649764,-524.28,0.00014767,2]
[353891356,1740114649774,-500.0,0.00014767,2]
[353891357,1740114649784,-511.75,0.00014767,2]
[353891358,1740114649793,-500.0,0.00014767,2]
[353891359,1740114649802,-500.0,0.00014767,2]
[353891360,1740114649811,-1007.53,0.00014767,2]
[353891361,1740114649820,-4009.9,0.00014767,2]
[353891362,1740114649829,-8446.91,0.00014767,2]
[353891363,1740114649838,-615.2,0.00014767,2]
[353891364,1740114649847,-1320.31,0.00014767,2]
[353891365,1740114649855,-557.27,0.00014767,2]
[353891366,1740114649865,-752.73,0.00014767,2]
[353891368,1740114649874,-500.0,0.00014767,2]
[353891370,1740114649883,-500.0,0.00014767,2]
[353891371,1740114649892,-648.09,0.00014767,2]
[353891372,1740114649901,-17376.56,0.00014767,2]
[353891373,1740114649910,-554.48,0.00014767,2]
[353891374,1740114649919,-923.91,0.00014767,2]
[353891375,1740114649928,-1155.74,0.00014767,2]
[353891376,1740114649938,-721.81,0.00014767,2]
[353891377,1740114649948,-646.04,0.00014767,2]
[353891378,1740114649957,-1855.29,0.00014767,2]
[353891379,1740114649966,-3407.22,0.00014767,2]
[353891380,1740114649975,-7910.61,0.00014767,2]
[353891381,1740114649984,-1002.16,0.00014767,2]
[353891382,1740114649994,-600.82,0.00014767,2]
[353891383,1740114650003,-1241.33,0.00014767,2]
[353891384,1740114650012,-1856.52,0.00014767,2]
[353891385,1740114650021,-1030.11,0.00014767,2]
[353891386,1740114650030,-2100.6,0.00014767,2]
[353891387,1740114650040,-665.38,0.00014767,2]
[353891388,1740114650049,-500.0,0.00014767,2]
[353891389,1740114650059,-500.0,0.00014767,2]
[353891390,1740114650068,-580.96,0.00014767,2]
[353891392,1740114650077,-1133.36,0.00014767,2]
[353891394,1740114650086,-500.0,0.00014767,2]
[353891396,1740114650095,-1557.5,0.00014767,2]
[353891398,1740114650104,-1012.26,0.00014767,2]
[353891400,1740114650113,-500.0,0.00014767,2]
[353891402,1740114650122,-500.0,0.00014767,2]
[353891404,1740114650131,-1120.86,0.00014767,2]
[353891406,1740114650140,-3734.49,0.00014767,2]
[353891408,1740114650150,-542.97,0.00014767,2]
[353891410,1740114650159,-514.31133253,0.00014767,2]
[353891412,1740114650168,-417.22224198,0.00014773,2]
[353891414,1740114650177,-11842.4323202,0.00014775,2]
[353891416,1740114650187,-151.0,0.000148,2]
[353891418,1740114650196,-19777.4147516,0.000148,2]
[353891420,1740114650205,-165.85816031,0.000148,2]
[353891422,1740114650214,-165.85816031,0.000148,2]
[353891424,1740114650223,-165.85816031,0.000148,2]
[353891426,1740114650232,-165.85,0.000148,2]
[353891428,1740114650241,-614.64061463,0.000148,2]
[353891430,1740114650251,-614.64061463,0.000148,2]
[353891432,1740114650261,-614.64061463,0.000148,2]
[353891434,1740114650270,-614.64061463,0.000148,2]
[353891436,1740114650278,-614.64061463,0.000148,2]
[353891437,1740114650287,-614.64061463,0.000148,2]
[353891439,1740114650296,-614.64061463,0.000148,2]
[353891441,1740114650305,-614.64061463,0.000148,2]
[353891443,1740114650314,-614.64061463,0.000148,2]
[353891445,1740114650323,-614.64061463,0.000148,2]
[353891447,1740114650332,-614.64061463,0.000148,2]
[353891449,1740114650341,-614.64061463,0.000148,2]
[353891451,1740114650350,-614.64061463,0.000148,2]
[353891453,1740114650360,-614.64061463,0.000148,2]
[353891455,1740114650369,-614.64061463,0.000148,2]
[353891457,1740114650379,-614.64061463,0.000148,2]
[353891459,1740114650388,-614.64061463,0.000148,2]
[353891461,1740114650397,-614.64061463,0.000148,2]
[353891464,1740114650407,-614.64061463,0.000148,2]
[353891465,1740114650416,-614.64,0.000148,2]
[353891467,1740114650425,-865.29765616,0.000148,2]
[353891469,1740114650435,-865.29765616,0.000148,2]
[353891472,1740114650444,-865.29765616,0.000148,2]
[353891473,1740114650453,-865.29765616,0.000148,2]
[353891475,1740114650462,-865.29765616,0.000148,2]
[353891478,1740114650473,-865.29765616,0.000148,2]
[353891480,1740114650483,-865.29765616,0.000148,2]
[353891481,1740114650492,-865.29765616,0.000148,2]
[353891484,1740114650502,-865.29765616,0.000148,2]
[353891486,1740114650513,-865.29765616,0.000148,2]
[353891488,1740114650522,-865.29765616,0.000148,2]
[353891490,1740114650531,-865.29765616,0.000148,2]
[353891492,1740114650540,-865.29765616,0.000148,2]
[353891494,1740114650549,-865.29765616,0.000148,2]
[353891496,1740114650561,-865.29765616,0.000148,2]
[353891498,1740114650573,-865.29765616,0.000148,2]
[353891500,1740114650582,-865.29765616,0.000148,2]
[353891502,1740114650591,-865.29765616,0.000148,2]
[353891503,1740114650600,-865.29765616,0.000148,2]
[353891505,1740114650610,-865.29,0.000148,2]
[353891506,1740114650620,-606.11449744,0.00014802,2]
[353891507,1740114650633,-3448.28708649,0.00014831,2]
[353891508,1740114650642,-500.0,0.00014849,2]
[353891509,1740114650651,-500.0,0.00014849,2]
[353891510,1740114650661,-500.0,0.00014849,2]
[353891511,1740114650671,-524.28,0.00014849,2]
[353891512,1740114650684,-186.15618881,0.00014849,2]
[353891513,1740114650693,-511.75,0.00014849,2]
[353891514,1740114650705,-500.0,0.00014849,2]
[353891515,1740114650715,-500.0,0.00014849,2]
[353891516,1740114650724,-1007.53,0.00014849,2]
[353891524,1740114650822,-4009.9,0.00014849,2]
[353891526,1740114650832,-8446.91,0.00014849,2]
[353891528,1740114650841,-615.2,0.00014849,2]
[353891530,1740114650851,-1320.31,0.00014849,2]
[353891532,1740114650860,-557.27,0.00014849,2]
[353891534,1740114650869,-752.73,0.00014849,2]
[353891536,1740114650879,-500.0,0.00014849,2]
[353891538,1740114650888,-500.0,0.00014849,2]
[353891540,1740114650897,-648.09,0.00014849,2]
[353891542,1740114650909,-17376.56,0.00014849,2]
[353891544,1740114650918,-554.48,0.00014849,2]
[353891546,1740114650927,-923.91,0.00014849,2]
[353891548,1740114650937,-1155.74,0.00014849,2]
[353891550,1740114650947,-721.81,0.00014849,2]
[353891552,1740114650955,-646.04,0.00014849,2]
[353891554,1740114650965,-1855.29,0.00014849,2]
[353891556,1740114650974,-3407.22,0.00014849,2]
[353891558,1740114650983,-7910.61,0.00014849,2]
[353891560,1740114650993,-1002.16,0.00014849,2]
[353891563,1740114651002,-600.82,0.00014849,2]
[353891564,1740114651011,-1241.33,0.00014849,2]
[353891567,1740114651020,-1856.52,0.00014849,2]
[353891569,1740114651029,-1030.11,0.00014849,2]
[353891571,1740114651038,-2100.6,0.00014849,2]
[353891573,1740114651047,-665.38,0.00014849,2]
[353891575,1740114651056,-500.0,0.00014849,2]
[353891576,1740114651065,-500.0,0.00014849,2]
[353891579,1740114651075,-580.96,0.00014849,2]
[353891581,1740114651084,-1133.36,0.00014849,2]
[353891582,1740114651093,-500.0,0.00014849,2]
[353891584,1740114651103,-1557.5,0.00014849,2]
[353891587,1740114651112,-1012.26,0.00014849,2]
[353891589,1740114651121,-500.0,0.00014849,2]
[353891591,1740114651130,-500.0,0.00014849,2]
[353891592,1740114651139,-1120.86,0.00014849,2]
[353891595,1740114651149,-3734.49,0.00014849,2]
[353891597,1740114651158,-542.97,0.00014849,2]
[353891599,1740114651168,-160.0,0.00014853,6]
[353891601,1740114651177,-500.0,0.00014873,2]
[353891603,1740114651187,-500.44648934,0.00014873,2]
[353891605,1740114651196,-500.5595125,0.00014873,2]
[353891607,1740114651206,-500.0,0.00014873,2]
[353891609,1740114651215,-500.89053201,0.00014873,2]
[353891611,1740114651224,-500.0,0.00014873,2]
[353891613,1740114651234,-500.53230309,0.00014873,2]
[353891615,1740114651243,-162.12723588,0.00014873,2]
[353891617,1740114651254,-522.26455558,0.00014873,2]
[353891618,1740114651263,-501.6663113,0.00014873,2]
[353891621,1740114651273,-500.49924397,0.00014873,2]
[353891623,1740114651283,-500.0,0.00014873,2]
[353891625,1740114651292,-330.79250448,0.00014873,2]
[353891627,1740114651302,-3897.69,0.000149,2]
[353891629,1740114651311,-37494.46366187,0.000149,2]
[353891653,1740114651531,-3500.0,0.00013698,2]
[353891656,1740114651548,-324.82,0.00013698,2]
[353891658,1740114651557,-500.0,0.00013698,2]
[353891660,1740114651567,-3824.82,0.0001378,2]